[Event "8th Montevideo Open 2025"]
[Site "Montevideo"]
[Date "2025.02.05"]
[Round "5.6"]
[White "Manteiga, Franco"]
[Black "Larrea, Manuel"]
[Result "0-1"]
[Annotator "TA"]
[ECO "E97"]
[WhiteElo "2029"]
[BlackElo "2265"]
[PlyCount "79"]
[EventDate "2025.02.01"]
[EventType "swiss"]
[EventCountry "URU"]
[SourceTitle "playchess.com"]
[Source "ChessBase"]
[SourceQuality "1"]
[TimeControl "5400+30"]

{[%evp 23,79,24,27,21,25,26,22,0,50,58,47,0,61,38,38,26,84,86,95,94,113,111,117,106,160,154,191,195,190,170,156,168,131,61,39,39,31,0,0,0,0,-271,0,0,0,0,0,0,0,0,0,-190,-190,-190,-190,-204,-164,-301]} 1. d4 {[%emt 0:00:01]} Nf6 {[%emt 0:11:41]} 2. c4 {[%emt 0:00:07]} g6 {[%emt 0:00:07]} 3. Nc3 {[%emt 0:00:06]} Bg7 {[%emt 0:00:07]} 4. e4 {[%emt 0:00:06]} d6 {[%emt 0:00:07]} 5. Be2 {[%emt 0:00:51]} O-O {[%emt 0:00:16]} 6. Nf3 {[%emt 0:00:11][%cal Bg1f3,Bf3g5,Bg5e4][%mdl 32]} e5 {[%emt 0:00:14]} 7. O-O {[%emt 0:00:09]} Nc6 {[%emt 0:00:17]} 8. d5 {[%emt 0:00:05]} Ne7 {[%emt 0:00:07]} 9. b4 {[%emt 0:00:08]} Nh5 {[%emt 0:00:28]} 10. Re1 {[%emt 0:00:09]} f5 {[%emt 0:00:12]} 11. Ng5 {[%emt 0:00:06] 11.a4 gains popularity.} Nf6 {[%emt 0:00:09]} 12. Bf3 {[%emt 0:00:14]} c6 {[%emt 0:00:26]} 13. b5 {[%emt 0:00:41] E97: King's Indian: Classical Main Line (6...e5 7 0-0 Nc6): 8 Be3 and 8 d5 Ne7, not 9 Ne1.} (13. Be3 {is interesting.} h6 14. Ne6 Bxe6 15. dxe6 Nxe4 16. Nxe4 fxe4 17. Bxe4 d5 18. cxd5 cxd5 19. Bc5) 13... cxd5 {[%emt 0:04:58]} 14. cxd5 {[%emt 0:00:10]} fxe4 {[%emt 0:01:19]} 15. Ngxe4 {[%emt 0:02:19] The position is equal.} Ne8 $146 {[%emt 0:11:43]} (15... Nf5 $11) (15... Nxe4 16. Nxe4 Nf5 17. Ba3 h5 18. Be2 Bh6 19. Qd3 Kg7 20. Bb4 Qe7 21. Qa3 Rd8 {1-0 Najer,E (2572)-Shinkevich,V (2440) RUS-Cup Bor 2000 (3)}) 16. a4 {[%emt 0:18:54]} Nf5 {[%emt 0:03:40]} 17. g3 {[%emt 0:02:13]} (17. Bg4 $14) 17... a5 {[%emt 0:06:15]} (17... Nd4 $11 18. Bg2 Rf7) 18. bxa6 {[%emt 0:13:07]} bxa6 {[%emt 0:02:17]} 19. Rb1 {[%emt 0:06:27]} h6 {[%emt 0:02:18]} (19... Nd4 $11 20. Bg2 Nf6) 20. Bg2 $16 {[%emt 0:03:17]} Ra7 {[%emt 0:03:10]} 21. Ba3 {[%emt 0:10:36]} Raf7 {[%emt 0:03:10]} 22. Re2 {[%emt 0:03:38]} Nd4 {[%emt 0:10:27]} 23. Reb2 {[%emt 0:00:11]} Nf3+ {[%emt 0:00:40]} (23... Bf5 24. Rb8 Qc7) 24. Kh1 {[%emt 0:00:35]} Ng5 {[%emt 0:07:46]} 25. Rb8 {[%emt 0:08:37] Hoping for h4.} Qc7 {[%emt 0:06:48]} 26. Nxg5 {[%emt 0:01:43]} hxg5 {[%emt 0:00:07]} 27. Ne4 {[%emt 0:00:08]} Bf5 {[%emt 0:05:45] [#]} 28. Rxe8 {[%emt 0:03:59]} Rxe8 $14 {[%emt 0:00:42]} 29. Rc1 {[%emt 0:00:03]} (29. Nxd6 Bxb1 30. Nxe8 (30. Qxb1 $2 Rb8 $19) 30... Qc2 31. Qxc2 Bxc2 32. Nxg7 Kxg7 $17) 29... Qb8 {[%emt 0:04:12]} 30. Nxd6 {[%emt 0:01:39]} Bf8 {[%emt 0:00:26]} 31. Nxf7 {[%emt 0:05:37]} Bxa3 {[%emt 0:00:37]} 32. d6 $2 {[%emt 0:12:20][%mdl 8192]} Bxc1 $2 {[%emt 0:09:59]} ({Black should play} 32... Kxf7 $19 33. Rc7+ Kf6) 33. d7 $11 {[%emt 0:00:03]} Kxf7 {[%emt 0:01:23]} 34. dxe8=Q+ {[%emt 0:00:45]} Qxe8 {[%emt 0:01:09]} (34... Kxe8 {simplifies} 35. Qxc1 Qb1 36. Qxb1 Bxb1 37. a5 Bd3) 35. Qxc1 {[%emt 0:00:41]} Qxa4 {[%emt 0:00:05] KQB-KQB. Black is a pawn up.} 36. Bd5+ {[%emt 0:06:52]} (36. Qxg5 $2 {gets mated.} Qd1+) 36... Kf6 {[%emt 0:00:49] and ...Qc2 should not be overlooked} 37. Kg1 $2 {[%emt 0:00:58] [#]} (37. Qc5 $11 {and White has nothing to worry.} Be4+ 38. Bxe4 Qxe4+ 39. Kg1) 37... Qc2 $1 $19 {[%emt 0:00:25] Black is clearly better.} 38. Qa1 {[%emt 0:00:17]} Qb1+ {[%emt 0:00:06]} 39. Qxb1 {[%emt 0:00:04]} Bxb1 {[%emt 0:00:06]} 40. Bb3 {[%emt 0:00:22] Never resign too early!   Weighted Error Value: White=0.33/Black=0.29 (precise)   Loses game:     	White=2     	---        Missed win:     	---       	Black=1      Mistake:       	White=3     	Black=4      Inaccurate:     	White=1     	---        OK:         	White=11    	Black=11     Best:        	White=2     	Black=2      Strong:       	---       	Black=1} (40. Kf1 $142) 0-1

[Event "8th Montevideo Open 2025"]
[Site "Montevideo"]
[Date "2025.02.05"]
[Round "5.7"]
[White "De Dovitiis, Alejo"]
[Black "Martello, Benjamin"]
[Result "1-0"]
[Annotator "TA"]
[ECO "A06"]
[WhiteElo "2225"]
[BlackElo "1968"]
[PlyCount "77"]
[EventDate "2025.02.01"]
[EventType "swiss"]
[EventCountry "URU"]
[SourceTitle "playchess.com"]
[Source "ChessBase"]
[SourceQuality "1"]
[TimeControl "5400+30"]

{[%evp 9,77,2,22,-6,-3,-25,-17,-16,-18,-22,-19,-24,-9,-46,-13,-26,-39,-29,-31,-47,-45,-87,-84,-94,-89,-101,-95,-104,-108,-138,-105,-170,-114,-128,-113,-109,-109,-101,-101,-131,-134,-132,-145,-145,-143,-157,-162,-378,-380,-378,-368,-366,-358,-337,-338,-637,-139,-175,-95,-81,-51,-82,954,923,29995,29996,29996,29997,29997,29998]} 1. Nf3 {[%emt 0:05:29]} d5 {[%emt 0:00:11]} 2. b3 {[%emt 0:00:17]} Nf6 {[%emt 0:00:46]} 3. Bb2 {[%emt 0:00:06]} e6 {[%emt 0:00:17]} 4. e3 {[%emt 0:00:16]} c5 {[%emt 0:00:10]} 5. Bb5+ {[%emt 0:01:08]} Bd7 {[%emt 0:00:06]} 6. Qe2 {[%emt 0:00:28] A06: Réti Opening: 1 Nf3 d5.} Be7 {[%emt 0:01:24]} 7. Ne5 {[%emt 0:01:27]} a6 {[%emt 0:02:02]} 8. Nxd7 $146 {[%emt 0:04:41] The position is equal.} (8. Bd3 Nc6 9. Nxd7 Qxd7 10. f4 d4 11. e4 e5 12. f5 h5 13. a3 h4 14. Qf3 {0-1 Zahid,S (1946)-Mahin,A (1807) Dhaka Chowdhury Memorial op-B 2nd 2022 (5)}) 8... Nbxd7 {[%emt 0:00:36]} 9. Bxd7+ {[%emt 0:00:51]} Nxd7 {[%emt 0:04:05]} 10. c4 {[%emt 0:00:23]} Bf6 {[%emt 0:01:15]} 11. Nc3 {[%emt 0:03:35]} O-O {[%emt 0:02:50]} 12. O-O {[%emt 0:00:55]} dxc4 {[%emt 0:02:43]} 13. bxc4 {[%emt 0:00:16]} b5 {[%emt 0:15:25]} 14. Rfb1 {[%emt 0:00:21]} b4 {[%emt 0:14:01]} 15. Nd1 {[%emt 0:01:48]} e5 {[%emt 0:05:58]} 16. e4 {[%emt 1:16:29]} Bg5 {[%emt 0:04:25]} 17. Ne3 {[%emt 0:00:00]} Bxe3 {[%emt 0:01:51]} 18. fxe3 {[%emt 0:00:00]} Re8 {[%emt 0:01:47]} 19. a3 {[%emt 0:00:00]} a5 {[%emt 0:01:50]} 20. axb4 {[%emt 0:00:00]} (20. d4 $17) 20... axb4 {[%emt 0:00:07][%csl Ob4] Black has a strong passed pawn} (20... cxb4 $19 21. d4 Nf6) 21. d3 {[%emt 0:00:00]} Qc7 {[%emt 0:04:40]} 22. h3 {[%emt 0:00:00]} Nb6 {[%emt 0:03:43]} 23. Qc2 {[%emt 0:00:00]} f6 {[%emt 0:01:46]} 24. Bc1 {[%emt 0:00:00]} Qd7 {[%emt 0:01:20]} 25. Kf1 {[%emt 0:00:00]} Rf8 {[%emt 0:04:43]} 26. Bb2 {[%emt 0:00:00]} Na4 {[%emt 0:12:16]} 27. Ra2 {[%emt 0:00:00]} Rfb8 {[%emt 0:01:56]} 28. Qb3 $2 {[%emt 0:00:00]} (28. Ba1 {was called for.}) 28... Nc3 $1 $19 {[%emt 0:02:10]} 29. Bxc3 {[%emt 0:00:00][%cal Od3d4]} Qxd3+ {[%emt 0:02:23]} 30. Kf2 {[%emt 0:00:00]} Rxa2+ {[%emt 0:01:27]} (30... bxc3 31. Qxb8+ Rxb8 32. Rxb8+ Kf7 33. Ra7+ Kg6 34. Rg8 $11) (30... Qxc3 31. Rxa8 Qd2+ (31... Rxa8 32. Qxc3 bxc3 33. Rc1 $17) 32. Kf3 Rxa8 33. Rd1 $14) 31. Qxa2 {[%emt 0:00:00]} Qxc3 {[%emt 0:00:17][%mdl 4096] Endgame KQR-KQR. Black is a pawn up.} 32. Rd1 $2 {[%emt 0:00:00]} (32. Qb3 Qxb3 33. Rxb3) 32... Qa3 $2 {[%emt 0:02:27]} (32... b3 $19 33. Qa7 Qc2+ 34. Kg3 Qxd1 35. Qxb8+ Kf7) 33. Qd2 $17 {[%emt 0:00:00] aiming for Qd5+.} Qa5 {[%emt 0:00:53]} ({Better is} 33... Qa8 $19 34. Qd6 b3) 34. Qd6 {[%emt 0:00:00]} Qb6 {[%emt 0:01:47] aiming for ...Qxd6.} 35. Qe7 {[%emt 0:00:00] [#] White wants to mate with Rd7.} f5 $1 {[%emt 0:01:38][%mdl 8192]} 36. Rd6 $18 {[%emt 0:00:00]} ({Weaker is} 36. Qxe5 fxe4 37. Kg1 Rc8 $11) (36. exf5 Qf6 37. Qxc5 Qxf5+ 38. Kg1 h6 $14) 36... Qa5 {[%emt 0:01:48]} 37. Rd7 {[%emt 0:00:00][%csl Gd7][%cal Re7g7] White mates.} Qa2+ {[%emt 0:00:05]} 38. Kg1 {[%emt 0:00:00][%csl Gd7][%cal Re7g7]} Qa1+ {[%emt 0:00:56]} 39. Kh2 {[%emt 0:00:00] Never resign too early!   Weighted Error Value: White=0.26 (precise) /Black=0.62  Loses game:     	---       	Black=1      Missed win:     	---       	Black=1      Mistake:       	White=3     	Black=1      Inaccurate:     	White=2     	Black=3      OK:         	White=4     	Black=17     Best:        	White=3     	Black=1      Strong:       	---       	Black=1} 1-0

[Event "8th Montevideo Open 2025"]
[Site "Montevideo"]
[Date "2025.02.05"]
[Round "5.8"]
[White "Milat, Marcel"]
[Black "Kulik, Nicolas"]
[Result "1/2-1/2"]
[Annotator "TA"]
[ECO "E97"]
[WhiteElo "2190"]
[BlackElo "1922"]
[PlyCount "80"]
[EventDate "2025.02.01"]
[EventType "swiss"]
[EventCountry "URU"]
[SourceTitle "playchess.com"]
[Source "ChessBase"]
[SourceQuality "1"]
[TimeControl "5400+30"]

{[%evp 19,80,35,47,32,31,29,27,19,58,32,20,18,52,19,52,27,48,45,56,50,41,51,66,51,60,30,60,53,70,0,0,0,0,0,0,77,-19,-34,-54,-77,0,0,0,-371,-345,-356,0,0,0,-341,0,0,0,0,41,50,43,0,0,0,0,-5,0]} 1. d4 {[%emt 0:00:07]} Nf6 {[%emt 0:00:01]} 2. c4 {[%emt 0:00:20]} g6 {[%emt 0:00:02]} 3. Nc3 {[%emt 0:00:26]} Bg7 {[%emt 0:00:01]} 4. e4 {[%emt 0:00:10]} O-O {[%emt 0:00:03]} 5. Nf3 {[%emt 0:00:10]} d6 {[%emt 0:00:02]} 6. Be2 {[%emt 0:00:10]} e5 {[%emt 0:00:01]} 7. O-O {[%emt 0:00:10]} Nc6 {[%emt 0:00:02]} 8. d5 {[%emt 0:00:11]} Ne7 {[%emt 0:00:01]} 9. b4 {[%emt 0:00:08]} Nh5 {[%emt 0:00:08]} 10. Re1 {[%emt 0:00:09]} f5 {[%emt 0:00:12]} 11. a4 {[%emt 0:01:37]} a5 {[%emt 0:00:31]} 12. bxa5 {[%emt 0:00:16][%cal Oc4c5]} Rxa5 {[%emt 0:00:12]} 13. Bd2 {[%emt 0:00:34] White has an edge.} Ra7 {[%emt 0:01:40]} 14. Ra3 {[%emt 0:14:35]} Nf6 {[%emt 0:10:35]} 15. Bd3 {[%emt 0:00:35]} Kh8 {[%emt 0:08:59]} 16. Qb3 {[%emt 0:19:24]} b6 {[%emt 0:18:07]} 17. Ng5 {[%emt 0:05:05]} h6 {[%emt 0:08:44]} 18. Ne6 {[%emt 0:00:07]} Bxe6 {[%emt 0:00:03]} 19. dxe6 {[%emt 0:00:07]} fxe4 {[%emt 0:13:31]} 20. Nxe4 {[%emt 0:03:06]} Nxe4 {[%emt 0:02:15]} 21. Bxe4 {[%emt 0:00:11]} (21. Rxe4 Qc8 $11) 21... Nf5 {[%emt 0:04:37] Black is weak on the light squares} 22. Qh3 {[%emt 0:16:48]} Qf6 {[%emt 0:03:18]} 23. Rf3 {[%emt 0:11:08]} (23. a5 {seems wilder.} Nd4 24. Rf1 Kh7 25. axb6 Rxa3 26. Qxa3 cxb6 27. Qxd6 Rd8 28. Qb4) 23... Qxe6 {[%emt 0:01:28]} 24. g4 {[%emt 0:08:37]} ({White should try} 24. Bxh6 $1 $14 Qxc4 (24... Bxh6 25. g4 $14) 25. Bg5+ (25. Bxf5 Rxf5 26. Rxf5 gxf5 $11) 25... Kg8 26. Rd3) 24... Ne7 $1 $11 {[%emt 0:00:31]} (24... Nd4 $2 25. Rxf8+ Bxf8 26. Bxh6 $18 (26. Bd5 Qd7 $11)) 25. Bxh6 {[%emt 0:10:14] This pair of bishops is nice.} Rxf3 26. Bxf3 {[%emt 0:00:02]} Bxh6 {[%emt 0:01:26]} 27. Qxh6+ {[%emt 0:00:08]} Kg8 {[%emt 0:00:03]} 28. h4 {[%emt 0:04:15]} Rxa4 {[%emt 0:09:18]} 29. h5 {[%emt 0:00:40] Threatens to win with hxg6.} Rxc4 {[%emt 0:00:59]} (29... Ra3 $1 $17 {[%cal Ra3f3]} 30. Re3 Rxe3 31. fxe3 e4 (31... Qxc4 32. hxg6 Qa2 33. Bc6 $18)) 30. Ra1 $1 {[%emt 0:00:23]} Rxg4+ {[%emt 0:00:23]} 31. Kh2 $2 {[%emt 0:01:17][%mdl 8192]} (31. Kf1 $1 $11 {and White is okay.} Qc4+ 32. Be2) 31... Rh4+ $19 {[%emt 0:10:51]} 32. Kg1 {[%emt 0:00:09] [#] Ra8+ would kill now.} Rg4+ $2 {[%emt 0:01:14]} 33. Kh2 $11 {[%emt 0:00:39] White wants to mate with Ra8+.} Rh4+ $2 {[%emt 0:00:12][%mdl 8192]} (33... Kf7 $11 34. Qh7+ Kf6 35. Bxg4 Qxg4 36. Qh8+ Ke6) 34. Kg1 $19 {[%emt 0:00:02] [#] White threatens Ra8+ and mate.} Rg4+ $2 {[%emt 0:08:00]} 35. Kf1 $11 {[%emt 0:06:00] Intending Ra8+ and mate.} Qc4+ {[%emt 0:00:30]} 36. Be2 {[%emt 0:00:30] The board is on fire.} Rg1+ {[%emt 0:00:30]} 37. Kxg1 $14 Qxe2 {[%emt 0:00:30]} 38. Ra8+ {[%emt 0:01:00]} (38. hxg6 $5 Qg4+ $8 39. Kh2 Qf4+ (39... Nxg6 $2 {is the wrong capture.} 40. Rg1 $18) 40. Qxf4 exf4 41. Rc1 $14) 38... Kf7 {[%emt 0:00:30] The position is equal.} 39. Rf8+ {[%emt 0:00:30]} (39. hxg6+ Nxg6 40. Ra7 (40. Qh7+ Kf6 $15) 40... Qe1+ 41. Kh2 Qxf2+ 42. Kh1 Qf3+ 43. Kg1 Qg3+ 44. Kh1 Qf3+ 45. Kh2 Qf5 $17) 39... Ke6 {...Qd1+ would now be deadly.} 40. hxg6 {Hoping for g7+.} Qg4+ {[%emt 0:01:00] Weighted Error Value: White=0.31/Black=0.56.  Loses game:     	White=1     	---        Missed win:     	---       	Black=2      Mistake:       	White=1     	Black=3      Inaccurate:     	White=4     	Black=4      OK:         	White=9     	Black=7      Best:        	White=4     	Black=4      Strong:       	White=1     	Black=1} 1/2-1/2

[Event "8th Montevideo Open 2025"]
[Site "Montevideo"]
[Date "2025.02.05"]
[Round "5.9"]
[White "Pichuaga, Juan Pablo"]
[Black "Mussanti, Diego"]
[Result "0-1"]
[Annotator "TA"]
[ECO "D02"]
[WhiteElo "1973"]
[BlackElo "2173"]
[PlyCount "134"]
[EventDate "2025.02.01"]
[EventType "swiss"]
[EventCountry "URU"]
[SourceTitle "playchess.com"]
[Source "ChessBase"]
[SourceQuality "1"]
[TimeControl "5400+30"]

{[%evp 11,134,-22,1,11,9,-17,0,0,1,-20,-11,-15,-20,-13,-29,-25,-23,-24,-26,-28,0,-6,-19,-15,0,-4,-28,-80,-82,-122,-116,-112,-83,-83,-85,-121,-61,-74,-35,-39,-38,-50,-25,-34,-32,-33,0,0,0,0,0,-81,-74,-70,-76,-132,-132,-132,-132,-144,-140,-252,-252,-383,-132,-132,-132,-132,-132,-132,-132,-132,-132,-230,-132,-133,0,-210,-132,-132,-132,-132,-132,-132,-132,-132,-93,-132,-132,-132,-132,-132,-133,-158,-159,-2409,-2405,-2411,-2193,-2154,-1765,-1502,-1338,-1194,-1132,-609,-580,-29950,-29954,-29953,-29953,-29945,-29948,-29969,-29972,-29963,-29968,-29979,-29980,-29981,-29977,-29978,-29963,-29993,-29994]} 1. Nf3 {[%emt 0:00:08]} d5 {[%emt 0:04:46]} 2. g3 {[%emt 0:00:15]} Nf6 {[%emt 0:00:20]} 3. Bg2 {[%emt 0:00:07]} e6 {[%emt 0:00:06]} 4. d4 {[%emt 0:00:24]} Be7 {[%emt 0:00:15]} 5. O-O {[%emt 0:00:09]} O-O {[%emt 0:00:10]} 6. Nbd2 {[%emt 0:05:44]} b6 {[%emt 0:01:29]} 7. c4 {[%emt 0:04:34] D02: 1 d4 d5 2 Nf3 sidelines, including 2...Nf6 3 g3 and 2...Nf6 3 Bf4.} Bb7 {[%emt 0:00:43]} 8. a3 {[%emt 0:02:30]} dxc4 {[%emt 0:05:16]} 9. Nxc4 {[%emt 0:00:30] The position is equal.} Nbd7 $146 {[%emt 0:03:34]} (9... a5 10. b3 b5 11. Nce5 c5 12. dxc5 Bxc5 13. Qxd8 Rxd8 14. Nxf7 Rf8 15. N7g5 Bd5 {1-0 Stojanovic,A (2235)-Stojanovic,M (2156) SRB-chT (Women) 1st 2007 (10)}) 10. b4 {[%emt 0:08:38]} c5 {[%emt 0:07:04]} 11. dxc5 {[%emt 0:05:25]} bxc5 {[%emt 0:00:19]} 12. b5 {[%emt 0:05:09]} a6 {[%emt 0:04:16]} 13. bxa6 {[%emt 0:01:15]} Rxa6 {[%emt 0:00:21]} 14. Nfd2 {[%emt 0:09:08]} Bxg2 {[%emt 0:01:07]} 15. Kxg2 {[%emt 0:54:04]} Nb6 {[%emt 0:08:05]} 16. Nxb6 {[%emt 0:00:00]} Qxb6 {[%emt 0:00:15]} 17. Nc4 $1 {[%emt 0:00:00]} Qb5 {[%emt 0:02:34]} 18. Qc2 {[%emt 0:00:00]} Ra4 {[%emt 0:04:30]} 19. Ne3 {[%emt 0:00:00]} (19. Nb2 $11 Ra6 20. Nc4) 19... c4 $17 {[%emt 0:01:33][%csl Oc4] Black has a strong passed pawn Black is more active.} 20. Rb1 {[%emt 0:02:30][%cal Ba1b1,Bb1b6,Bb6d6][%mdl 32]} Qc6+ 21. Kg1 Nd5 (21... Bxa3 $6 22. Ra1 Qa6 23. Rd1 $11) 22. Nxd5 exd5 23. Rb6 {[%emt 0:00:00]} Qa8 (23... Qxb6 $17 24. Qxa4 Qc5) 24. Rd1 {[%emt 0:00:00]} Bxa3 25. Bxa3 {[%emt 0:00:00]} Rxa3 26. Rd6 {[%emt 0:00:00]} Ra5 27. Qd2 {[%emt 0:00:00]} Rb5 28. Qd4 {[%emt 0:00:00][%cal Rd6d5]} Qa2 29. Rxd5 {[%emt 0:00:00]} Rxd5 30. Qxd5 {[%emt 0:00:00]} Qxe2 $11 {[%mdl 4096] Endgame KQR-KQR. Black is a pawn up.} 31. Rc1 {[%emt 0:00:00]} (31. Rd4 $11 {remains equal.}) 31... Rc8 $17 32. Qd7 {[%emt 0:00:00]} Qe6 $1 33. Qd4 {[%emt 0:00:00] [#]} (33. Qxe6 $142 fxe6 34. f4) 33... c3 $1 {[%mdl 512]} 34. Rc2 {[%emt 0:00:00]} (34. Qd3 g6) 34... Qb3 35. Qd7 {[%emt 0:00:00][%cal Rd7c8]} Qc4 36. h4 {[%emt 0:00:00]} (36. Qb7 $17) 36... h5 $19 37. Qf5 {[%emt 0:00:00]} (37. Qd1) 37... g6 $2 (37... Rd8 $1 $19 {[%cal Rd8d1] is more deadly.} 38. Rc1 Rd2 39. Qxh5 Qe4) 38. Qf3 $17 {[%emt 0:00:00]} Qd4 39. Kg2 {[%emt 0:00:00]} Rc5 40. Kh3 {[%emt 0:00:00]} Kg7 41. Kg2 {[%emt 0:00:00]} Rc4 42. Qe2 {[%emt 0:00:00] [#]} (42. Kf1 $17 {was called for.}) 42... Rb4 (42... Qd5+ $1 $19 43. Qf3 Qd4) 43. Qf3 {[%emt 0:00:00] [#]} Rc4 (43... Rb3 $1 $17 44. Kh2 Qe5) 44. Qe2 $1 $19 {[%emt 0:00:00]} Kh6 45. Qf3 {[%emt 0:00:00]} f5 46. Kh2 {[%emt 0:00:00]} Rc7 47. Qa8 {[%emt 0:00:00]} Kh7 48. Qf8 {[%emt 0:00:00]} Qc4 {[%cal Of5f4]} 49. Qd8 {[%emt 0:00:00][%cal Oc2e2]} f4 50. Qd6 {[%emt 0:00:00]} fxg3+ 51. fxg3 {[%emt 0:00:00]} Rf7 52. Qe5 {[%emt 0:00:00] Wards off Qe4} Qd3 53. Qxc3 {[%emt 0:00:00] [#] This costs White the game.} (53. Rg2 $17) 53... Rf2+ $3 {[%mdl 512]} 54. Rxf2 {[%emt 0:00:00]} Qxc3 {KQ-KR} 55. Rf4 {[%emt 0:00:00]} Qd2+ 56. Kg1 {[%emt 0:00:00]} Qe2 57. Kh1 {[%emt 0:00:00]} Kg7 {[%cal Og6g5]} 58. Kg1 {[%emt 0:00:00]} Qd2 {Hoping for ...Qc1+.} 59. Kh1 {[%emt 0:00:00] [#]} g5 $1 {Black mates.} 60. hxg5 {[%emt 0:00:00] [#]} h4 $1 61. Rxh4 {[%emt 0:00:00]} Qf2 62. Rf4 {[%emt 0:00:00]} Qxg3 63. Rf1 {[%emt 0:00:00]} Kg6 (63... Qxg5 64. Rg1 Kh6 65. Rxg5 Kxg5 $11) 64. Rf6+ {[%emt 0:00:00]} Kh5 (64... Kxg5 65. Rg6+ Kxg6 $11) 65. Rf8 {[%emt 0:00:00]} Qe1+ ({Worse is} 65... Kxg5 66. Rg8+ Kh4 67. Rxg3 Kxg3 $11) 66. Kh2 {[%emt 0:00:00]} Qe2+ 67. Kh1 {[%emt 0:00:00]} Kg4 {Weighted Error Value: White=0.33/Black=0.30  Loses game:     	White=1     	---        Missed win:     	---       	Black=1      Mistake:       	White=6     	Black=3      Inaccurate:     	White=4     	Black=4      OK:         	White=16    	Black=16     Best:        	White=3     	Black=1      Strong:       	White=2     	Black=1      Brilliant:      	---       	Black=1} 0-1

[Event "8th Montevideo Open 2025"]
[Site "Montevideo"]
[Date "2025.02.05"]
[Round "5.9"]
[White "Pichuaga, Juan Pablo"]
[Black "Mussanti, Diego"]
[Result "*"]
[Annotator "RC"]
[ECO "D02"]
[WhiteElo "1973"]
[BlackElo "2173"]
[PlyCount "46"]
[EventDate "2025.02.01"]
[EventType "swiss"]
[EventCountry "URU"]
[SourceTitle "playchess.com"]
[Source "ChessBase"]
[SourceQuality "1"]
[TimeControl "5400+30"]

1. Nf3 {[%emt 0:00:08]} d5 {[%emt 0:04:46]} 2. g3 {[%emt 0:00:15]} Nf6 {[%emt 0:00:20]} 3. Bg2 {[%emt 0:00:07]} e6 {[%emt 0:00:06]} 4. d4 {[%emt 0:00:24]} Be7 {[%emt 0:00:15]} 5. O-O {[%emt 0:00:09]} O-O {[%emt 0:00:10]} 6. Nbd2 {[%emt 0:05:44]} b6 {[%emt 0:01:29]} 7. c4 {[%emt 0:04:34]} Bb7 {[%emt 0:00:43]} 8. a3 {[%emt 0:02:30]} dxc4 {[%emt 0:05:16]} 9. Nxc4 {[%emt 0:00:30]} Nbd7 {[%emt 0:03:34]} 10. b4 {[%emt 0:08:38]} c5 {[%emt 0:07:04]} 11. dxc5 {[%emt 0:05:25]} bxc5 {[%emt 0:00:19]} 12. b5 {[%emt 0:05:09]} a6 {[%emt 0:04:16]} 13. bxa6 {[%emt 0:01:15]} Rxa6 {[%emt 0:00:21]} 14. Nfd2 {[%emt 0:09:08]} Bxg2 {[%emt 0:01:07]} 15. Kxg2 {[%emt 0:54:04]} Nb6 {[%emt 0:08:05]} 16. Nxb6 {[%emt 0:00:00]} Qxb6 {[%emt 0:00:15]} 17. Nc4 {[%emt 0:00:00]} Qb5 {[%emt 0:02:34]} 18. Qc2 {[%emt 0:00:00]} Ra4 {[%emt 0:04:30]} 19. Ne3 {[%emt 0:00:00]} c4 {[%emt 0:01:33]} 20. Rb1 {[%emt 0:00:00]} Qc6+ 21. Kg1 {[%emt 0:00:00]} Nd5 22. Nxd5 {[%emt 0:00:00]} exd5 23. Rb6 {[%emt 0:00:00]} Qxb6 *